bitfinex/quotes_BTCUSD_20241024
["timestamp","ask_amount","ask_price","bid_price","bid_amount"]
[1729790719597,0.002,67591.0,67589.0,0.001648]
[1729790719842,0.147945,67593.0,67589.0,0.001648]
[1729790719843,0.002,67593.0,67589.0,0.001648]
[1729790720296,0.002,67593.0,67590.0,0.14795]
[1729790720512,0.002,67593.0,67589.0,0.001648]
[1729790720733,0.002,67593.0,67590.0,0.14795]
[1729790720954,0.147934,67598.0,67591.0,0.147948]
[1729790721183,0.147934,67598.0,67591.0,0.29938299]
[1729790721404,0.147935,67597.0,67592.0,0.0815]
[1729790722080,0.002,67593.0,67592.0,0.0815]
[1729790722534,0.002,67593.0,67589.0,0.001648]
[1729790722775,0.14795,67591.0,67589.0,0.001648]
[1729790723049,0.147944,67593.0,67589.0,0.001648]
[1729790723520,0.14795,67590.0,67589.0,0.001648]
[1729790723754,0.002,67590.0,67589.0,0.001648]
[1729790723975,0.002,67593.0,67589.0,0.001648]
[1729790724214,0.147943,67594.0,67589.0,0.001648]
[1729790724472,0.295872,67597.0,67589.0,0.001648]
[1729790724702,0.002,67593.0,67592.0,0.15143499]
[1729790724922,0.002,67594.0,67592.0,0.15143499]
[1729790725383,0.002,67594.0,67591.0,0.147948]
[1729790725622,0.147935,67597.0,67590.0,0.2959]
[1729790725623,0.147932,67599.0,67592.0,0.147944]
[1729790725849,0.29586,67600.0,67590.0,0.295898]
[1729790726074,0.147935,67597.0,67589.0,0.34238299]
[1729790726329,0.295838,67605.0,67591.0,0.147947]
[1729790726563,0.002,67594.0,67591.0,0.147948]
[1729790726826,0.002,67594.0,67591.0,0.36940251]
[1729790727300,0.002,67594.0,67591.0,0.147948]
[1729790727518,0.295865,67599.0,67591.0,0.147948]
[1729790727735,0.147935,67597.0,67591.0,0.147948]
[1729790729340,0.147933,67598.0,67593.0,0.147943]
[1729790729568,0.29584,67604.0,67592.0,0.15143499]
[1729790729788,0.147937,67597.0,67592.0,0.15143499]
[1729790730732,0.002,67593.0,67592.0,0.15143499]
[1729790730957,0.002,67594.0,67592.0,0.29938099]
[1729790731179,0.002,67594.0,67592.0,0.15143499]
[1729790731397,0.002,67594.0,67593.0,0.147944]
[1729790731639,0.295858,67600.0,67594.0,0.0799]
[1729790731640,0.002,67600.0,67594.0,0.0799]
[1729790731855,0.002,67600.0,67595.0,0.29937399]
[1729790731856,0.149929,67600.0,67595.0,0.29937399]
[1729790732108,0.147932,67599.0,67594.0,0.23040381]
[1729790732337,0.002,67600.0,67594.0,0.23040381]
[1729790732559,0.149929,67600.0,67595.0,0.147939]
[1729790732784,0.147929,67600.0,67595.0,0.147939]
[1729790733012,0.002,67595.0,67594.0,0.23040381]
[1729790733249,0.22227951,67607.0,67594.0,0.23040381]
[1729790733250,0.147937,67597.0,67594.0,0.23040381]
[1729790733477,0.22227951,67607.0,67594.0,0.23040381]
[1729790733478,0.295865,67599.0,67594.0,0.23040381]
[1729790733705,0.147929,67600.0,67594.0,0.37834381]
[1729790733924,0.51810751,67607.0,67594.0,0.23040381]
[1729790734156,0.000825,67607.0,67594.0,0.23040381]
[1729790734400,0.002,67600.0,67594.0,0.5297788]
[1729790734688,0.147932,67599.0,67594.0,0.3818388]
[1729790734929,0.002,67595.0,67594.0,0.23040381]
[1729790735381,0.002,67595.0,67594.0,0.23502995]
[1729790735619,0.149936,67597.0,67594.0,0.23502995]
[1729790735862,0.149936,67597.0,67571.0,0.02962]
[1729790735863,0.002,67596.0,67589.0,0.001648]
[1729790736112,0.147947,67592.0,67590.0,0.22608087]
[1729790736350,0.147947,67592.0,67591.0,0.00462636]
[1729790737936,0.14995,67590.0,67589.0,0.001648]
[1729790740824,0.002,67590.0,67589.0,0.001648]
[1729790741321,0.14995,67590.0,67589.0,0.001648]
[1729790742967,0.40045381,67590.0,67589.0,0.001648]
[1729790751300,0.24995,67590.0,67589.0,0.001648]
[1729790752195,0.14995,67590.0,67589.0,0.001648]
[1729790757426,0.4518888,67590.0,67589.0,0.001648]
[1729790757683,0.7405888,67590.0,67589.0,0.001648]
[1729790757925,1.11416256,67590.0,67589.0,1e-06]
[1729790758153,1.37998206,67590.0,67589.0,1e-06]
[1729790758395,1.26986819,67590.0,67589.0,1e-06]
[1729790758621,1.12912053,67590.0,67589.0,1e-06]
[1729790759060,1.15228596,67590.0,67589.0,1e-06]
[1729790760184,1.15028596,67590.0,67589.0,1e-06]
[1729790761164,1.15228596,67590.0,67589.0,1e-06]
[1729790762128,1.12712053,67590.0,67589.0,1e-06]
[1729790762631,0.97788176,67590.0,67589.0,1e-06]
[1729790762877,1.04312358,67590.0,67589.0,1e-06]
[1729790763777,0.97788176,67590.0,67589.0,1e-06]
[1729790763997,1.08818378,67590.0,67589.0,1e-06]
[1729790765465,0.97788176,67590.0,67589.0,1e-06]
[1729790765922,1.21600894,67590.0,67589.0,1e-06]
[1729790766378,1.21400894,67590.0,67589.0,1e-06]
[1729790766606,1.21600894,67590.0,67589.0,1e-06]
[1729790766832,1.12802779,67590.0,67589.0,1e-06]
[1729790767095,1.12801611,67590.0,67589.0,1e-06]
[1729790767555,1.12807952,67590.0,67589.0,1e-06]
[1729790767793,0.64374263,67590.0,67589.0,1e-06]
[1729790768013,0.64374278,67590.0,67589.0,1e-06]
[1729790768230,0.57757613,67590.0,67589.0,1e-06]
[1729790769147,0.64374278,67590.0,67589.0,1e-06]
[1729790769646,0.72446987,67590.0,67589.0,1e-06]
[1729790769850,1.23737316,67590.0,67589.0,1e-06]
[1729790770286,1.08793817,67590.0,67589.0,1e-06]
[1729790770493,1.08593817,67590.0,67589.0,1e-06]
[1729790770718,1.08736756,67590.0,67589.0,1e-06]
[1729790771167,1.08819256,67590.0,67589.0,1e-06]
[1729790771403,1.19841315,67590.0,67589.0,1e-06]
[1729790771625,1.3176332,67590.0,67589.0,1e-06]
[1729790772073,1.3176332,67590.0,67580.0,0.07347951]
[1729790772074,0.77633998,67581.0,67580.0,0.07347951]
[1729790772312,0.95974379,67581.0,67580.0,0.07347951]
[1729790772531,0.95974379,67581.0,67579.0,0.00165]
[1729790772532,0.264972,67580.0,67579.0,0.00165]
[1729790772774,0.48159428,67580.0,67579.0,0.00165]
[1729790773427,0.50459428,67580.0,67579.0,0.00165]
[1729790773895,0.50659428,67580.0,67579.0,0.00165]
[1729790774119,0.65709809,67580.0,67579.0,0.00165]
[1729790774335,0.65509809,67580.0,67579.0,0.00165]
[1729790774564,0.43847581,67580.0,67579.0,0.00165]
[1729790777946,0.44701718,67580.0,67579.0,0.00165]
[1729790778612,0.44901718,67580.0,67579.0,0.00165]
[1729790778838,0.51513503,67580.0,67579.0,0.00165]
[1729790779929,0.51313503,67580.0,67579.0,0.00165]
[1729790780207,0.5151438,67580.0,67579.0,0.00165]
[1729790780437,0.44901718,67580.0,67579.0,0.00165]
[1729790780655,0.5151438,67580.0,67579.0,0.00165]
[1729790781560,0.54995698,67580.0,67579.0,0.00165]
[1729790781996,0.87709425,67580.0,67579.0,0.00165]
[1729790782697,0.75320169,67580.0,67579.0,0.00165]
[1729790782891,0.58372942,67580.0,67579.0,0.00165]
[1729790783137,0.67193796,67580.0,67579.0,0.00165]
[1729790783368,0.58372942,67580.0,67579.0,0.00165]
[1729790783824,0.67195572,67580.0,67579.0,0.00165]
[1729790784073,0.58372942,67580.0,67579.0,0.00165]
[1729790784790,0.66447096,67580.0,67579.0,0.00165]
[1729790785011,0.67447096,67580.0,67579.0,0.00165]
[1729790786630,0.58623571,67580.0,67579.0,0.00165]
[1729790787519,0.76039302,67580.0,67579.0,0.00165]
[1729790787741,0.91182801,67580.0,67579.0,0.00165]
[1729790787996,1.10252801,67580.0,67579.0,0.00165]
[1729790788243,0.99223394,67580.0,67579.0,0.00165]
[1729790789579,1.03538617,67580.0,67579.0,0.00165]
[1729790789821,0.99223394,67580.0,67579.0,0.00165]
[1729790790060,1.03538606,67580.0,67579.0,0.00165]
[1729790793108,1.05838606,67580.0,67579.0,0.00165]
[1729790794231,1.05888771,67580.0,67579.0,0.00165]
[1729790796352,1.1913647,67580.0,67579.0,0.00165]
[1729790797232,1.05888771,67580.0,67579.0,0.00165]
[1729790797903,1.05888771,67580.0,67567.0,0.0818]
[1729790797904,0.249999,67568.0,67567.0,0.0818]
[1729790798188,0.80018686,67568.0,67567.0,0.0818]
[1729790798401,0.80518258,67568.0,67567.0,0.0818]
[1729790798617,0.71683298,67568.0,67567.0,0.0818]
[1729790798838,0.71613787,67568.0,67567.0,0.0818]
[1729790799542,0.56470288,67568.0,67567.0,0.0818]
[1729790799797,0.71613787,67568.0,67567.0,0.0818]
[1729790800231,0.80449206,67568.0,67567.0,0.0818]
[1729790800467,0.65305707,67568.0,67567.0,0.0818]
[1729790800727,0.64807413,67568.0,67567.0,0.0818]
[1729790800950,0.64807413,67568.0,67567.0,0.2791]
[1729790801384,0.40050281,67568.0,67567.0,0.2791]
[1729790801612,0.46678358,67568.0,67567.0,0.2791]
[1729790801844,0.36678358,67568.0,67567.0,0.2791]
[1729790802510,0.30050281,67568.0,67567.0,0.2791]
[1729790803636,0.54883369,67568.0,67567.0,0.2791]
[1729790805692,0.39832988,67568.0,67567.0,0.2791]
[1729790806421,0.39832988,67568.0,67567.0,0.28075]
[1729790806659,0.21636891,67568.0,67567.0,0.28075]
[1729790807312,0.149999,67568.0,67567.0,0.28075]
[1729790807989,0.30658511,67568.0,67567.0,0.28075]
[1729790808417,0.30658655,67568.0,67567.0,0.28075]
[1729790809526,0.30458655,67568.0,67567.0,0.28075]
[1729790809761,0.39308202,67568.0,67567.0,0.28075]
[1729790812497,0.39508202,67568.0,67567.0,0.28075]
[1729790813183,0.39509104,67568.0,67567.0,0.28075]
[1729790814580,0.30659103,67568.0,67567.0,0.28075]
[1729790815438,0.41721604,67568.0,67567.0,0.28075]
[1729790816766,0.30659103,67568.0,67567.0,0.28075]
[1729790817460,0.41721604,67568.0,67567.0,0.28075]
[1729790819900,0.30659103,67568.0,67567.0,0.28075]
[1729790820177,0.41721604,67568.0,67567.0,0.28075]
[1729790820422,0.30659103,67568.0,67567.0,0.28075]
[1729790821312,0.30683999,67568.0,67567.0,0.28075]
[1729790822195,0.39541104,67568.0,67567.0,0.28075]
[1729790826045,0.39556031,67568.0,67567.0,0.28075]
[1729790827643,0.49998514,67568.0,67567.0,0.28075]
[1729790827914,0.06644005,67569.0,67567.0,0.38497483]
[1729790828175,0.04429217,67576.0,67570.0,0.0816]
[1729790828423,0.002,67576.0,67572.0,0.2806]
[1729790828646,0.000825,67580.0,67574.0,0.2806]
[1729790828872,0.000825,67580.0,67578.0,0.147977]
[1729790829105,0.148798,67580.0,67578.0,0.2806]
[1729790829337,0.150799,67579.0,67578.0,0.2806]
[1729790829584,0.25522383,67579.0,67578.0,0.2806]
[1729790829805,0.150799,67579.0,67578.0,0.2806]
[1729790830266,0.148799,67579.0,67578.0,0.2806]
[1729790830974,0.000825,67579.0,67578.0,0.2806]
[1729790833043,0.148799,67579.0,67578.0,0.2806]
[1729790833517,0.000825,67579.0,67578.0,0.2806]
[1729790834203,0.148799,67579.0,67578.0,0.2806]
[1729790834680,0.000825,67579.0,67578.0,0.2806]
[1729790834914,0.148799,67579.0,67578.0,0.2806]
[1729790835434,0.150799,67579.0,67578.0,0.2806]
[1729790836624,0.148799,67579.0,67578.0,0.2806]
[1729790836881,0.000825,67579.0,67578.0,0.2806]
[1729790837129,0.000825,67579.0,67578.0,0.428577]
[1729790838339,0.000825,67579.0,67578.0,0.43320405]
[1729790841386,0.000825,67579.0,67578.0,0.43485405]
[1729790844821,0.000825,67579.0,67578.0,0.430227]
[1729790845051,0.000825,67579.0,67578.0,0.43485369]
[1729790852496,0.000825,67579.0,67578.0,0.53918549]
[1729790852978,0.000825,67579.0,67578.0,0.64351729]
[1729790855349,0.000825,67579.0,67578.0,0.53918549]
[1729790856429,0.000825,67579.0,67578.0,0.54658844]
[1729790859845,0.000825,67579.0,67578.0,0.54658859]
[1729790860794,0.000825,67579.0,67578.0,0.65592039]
[1729790865178,0.000825,67579.0,67578.0,0.920756]
[1729790865445,0.000825,67590.0,67589.0,0.3716166]
[1729790865686,0.000825,67590.0,67589.0,0.912482]
[1729790865898,0.000825,67590.0,67589.0,0.9311502]
[1729790867854,0.000825,67590.0,67589.0,0.92652071]
[1729790868063,0.000825,67590.0,67589.0,0.9311459]
[1729790870760,0.000825,67590.0,67589.0,0.94176931]
[1729790872104,0.000825,67590.0,67589.0,0.98594549]
[1729790872772,0.000825,67590.0,67589.0,0.98596035]
[1729790873027,0.000825,67590.0,67589.0,0.98596108]
[1729790873732,0.000825,67590.0,67589.0,0.94176931]
[1729790875535,0.000825,67590.0,67589.0,0.94176947]
[1729790876460,0.000825,67590.0,67589.0,0.9859653]
[1729790877129,0.000825,67590.0,67589.0,0.98596364]
[1729790877356,0.000825,67590.0,67589.0,0.94176947]
[1729790877576,0.000825,67590.0,67589.0,0.98596358]
[1729790879412,0.000825,67590.0,67589.0,0.98596356]
[1729790879649,0.000825,67590.0,67589.0,1.0080571]
[1729790879877,0.000825,67590.0,67589.0,1.17116219]
[1729790880118,0.000825,67590.0,67589.0,1.19325808]
[1729790880584,0.22145451,67604.0,67597.0,0.162935]
[1729790880828,0.22145451,67604.0,67597.0,0.91842769]
[1729790881306,0.000825,67607.0,67597.0,0.96261231]
[1729790881539,0.000825,67607.0,67597.0,0.81409589]
[1729790881778,0.000825,67607.0,67597.0,0.91842769]
[1729790881980,0.00040051,67598.0,67597.0,0.91842658]
[1729790882955,0.00040051,67598.0,67597.0,0.81409478]
[1729790883208,0.00040051,67598.0,67597.0,0.68676298]
[1729790883451,0.00040051,67598.0,67597.0,0.59760509]
[1729790883673,0.00040051,67598.0,67597.0,0.6945374]
[1729790883901,0.00040051,67598.0,67597.0,0.70193689]
[1729790884386,0.00040051,67598.0,67597.0,0.80626869]
[1729790884621,0.00040051,67598.0,67597.0,0.70193689]
[1729790886064,0.00040051,67598.0,67597.0,0.70193718]
[1729790891024,0.00040051,67598.0,67597.0,0.92926898]
[1729790891941,0.00040051,67598.0,67597.0,0.97340792]
[1729790892408,0.00040051,67598.0,67597.0,0.92926898]
[1729790892625,0.00040051,67598.0,67597.0,0.82493718]
[1729790893569,0.00040051,67598.0,67597.0,0.82493619]
[1729790894871,0.00040051,67598.0,67597.0,0.72060439]
[1729790895091,0.00040051,67598.0,67597.0,0.82493619]
[1729790895314,0.00040051,67598.0,67597.0,0.71060439]
[1729790895764,0.00040051,67598.0,67597.0,0.79109408]
[1729790895768,0.00040051,67598.0,67597.0,0.40076228]
[1729790897196,0.00040051,67598.0,67597.0,0.50509592]
[1729790900007,0.00040051,67598.0,67597.0,0.50674392]
[1729790900453,0.00040051,67598.0,67597.0,0.55373624]
[1729790900896,0.00040051,67598.0,67597.0,0.54171093]
[1729790903027,0.00040051,67598.0,67597.0,0.154583]
[1729790903289,0.00040051,67598.0,67597.0,0.001648]
[1729790903531,0.34493351,67598.0,67597.0,0.001648]
[1729790905175,0.34293351,67598.0,67597.0,0.001648]
[1729790905426,0.34493351,67598.0,67597.0,0.001648]
[1729790906364,0.53195763,67598.0,67597.0,0.001648]
[1729790906584,0.53113732,67598.0,67597.0,0.001648]
[1729790907995,0.52913732,67598.0,67597.0,0.001648]
[1729790908207,0.53113732,67598.0,67597.0,0.001648]
[1729790910210,0.34293351,67598.0,67597.0,0.001648]
[1729790910692,0.34493351,67598.0,67597.0,0.001648]
[1729790911184,0.34293351,67598.0,67597.0,0.001648]
[1729790911399,0.15033351,67598.0,67597.0,0.001648]
[1729790911625,0.14833351,67598.0,67597.0,0.001648]
[1729790912505,0.00040051,67598.0,67597.0,0.001648]
[1729790912720,0.14833351,67598.0,67597.0,0.001648]
[1729790913833,0.00040051,67598.0,67597.0,0.001648]
[1729790914488,0.00040051,67598.0,67597.0,0.149583]
[1729790914710,0.00040051,67598.0,67597.0,0.001648]
[1729790914981,0.00040051,67598.0,67597.0,0.30090712]
[1729790915213,0.00040051,67598.0,67597.0,0.53491093]
[1729790915451,0.00040051,67598.0,67597.0,0.53953655]
[1729790915681,0.00040051,67598.0,67597.0,0.69086067]
[1729790915926,0.00040051,67598.0,67597.0,0.90796067]
[1729790916849,0.00040051,67598.0,67597.0,1.02605201]
[1729790919146,0.00040051,67598.0,67597.0,1.02604998]
[1729790920296,0.00040051,67598.0,67597.0,0.87472586]
[1729790920532,0.00040051,67598.0,67597.0,0.86732636]
[1729790920780,0.00040051,67598.0,67597.0,0.87472586]
[1729790920987,0.00040051,67598.0,67597.0,0.87472558]
[1729790921212,0.00040051,67598.0,67597.0,0.38821139]
[1729790921457,0.00040051,67598.0,67597.0,0.53953551]
[1729790923215,0.00040051,67598.0,67597.0,0.54953551]
[1729790923420,0.00040051,67598.0,67597.0,0.74523551]
[1729790924277,0.00040051,67598.0,67597.0,0.74523587]
[1729790925324,0.00040051,67598.0,67597.0,0.75263577]
[1729790925528,0.00040051,67598.0,67597.0,0.74523587]
[1729790925738,0.00040051,67598.0,67597.0,0.75263577]
[1729790925941,0.00040051,67598.0,67597.0,0.74523587]
[1729790926150,0.00040051,67598.0,67597.0,0.75263577]
[1729790926363,0.00040051,67598.0,67597.0,0.74523587]
[1729790926681,0.00040051,67598.0,67597.0,0.00627294]
[1729790926831,0.15033351,67598.0,67597.0,0.001648]
[1729790927050,0.00240051,67598.0,67597.0,0.001648]
[1729790927264,0.15033351,67598.0,67597.0,0.001648]
[1729790927476,0.00240051,67598.0,67597.0,0.001648]
[1729790930547,0.15033351,67598.0,67597.0,0.001648]
[1729790932274,0.00240051,67598.0,67597.0,0.001648]
[1729790933991,0.15033351,67598.0,67597.0,0.001648]
[1729790937475,0.14833351,67598.0,67597.0,0.001648]
[1729790937702,0.00040051,67598.0,67597.0,0.001648]
[1729790938597,0.00040051,67598.0,67597.0,0.149583]
[1729790938813,0.00040051,67598.0,67597.0,0.079848]
[1729790939027,0.00040051,67598.0,67597.0,0.227783]
[1729790939734,0.00040051,67598.0,67597.0,0.079848]
[1729790940582,0.00040051,67598.0,67597.0,0.23074143]
[1729790941270,0.00040051,67598.0,67597.0,0.23536712]
[1729790941488,0.00040051,67598.0,67597.0,0.38587093]
[1729790941695,0.00040051,67598.0,67597.0,0.3829125]
[1729790942607,0.00040051,67598.0,67597.0,0.37828681]
[1729790942824,0.00040051,67598.0,67597.0,0.38291212]
[1729790945297,0.00040051,67598.0,67597.0,0.23240831]
[1729790946232,0.00040051,67598.0,67597.0,0.227783]
[1729790946468,0.00040051,67598.0,67597.0,0.23240865]
[1729790950429,0.00040051,67598.0,67597.0,0.23240862]
[1729790952428,0.00040051,67598.0,67597.0,0.23980962]
[1729790953159,0.00040051,67598.0,67597.0,0.23240862]
[1729790953418,0.00040051,67598.0,67597.0,0.23980963]
[1729790953629,0.00040051,67598.0,67597.0,0.23980964]
[1729790955685,0.00040051,67598.0,67597.0,0.01367464]
[1729790955686,0.00240051,67598.0,67597.0,0.01367464]
[1729790956149,0.15033351,67598.0,67597.0,0.00627363]
[1729790956631,0.15033351,67598.0,67597.0,0.00627405]
[1729790957087,0.15033351,67598.0,67597.0,0.00627402]
[1729790957308,0.00240051,67598.0,67597.0,0.00627402]
[1729790957543,0.15033351,67598.0,67597.0,0.00627402]
[1729790958047,0.00240051,67598.0,67597.0,0.00627402]
[1729790958276,0.00040051,67598.0,67597.0,0.00627402]
[1729790960743,0.00040051,67598.0,67597.0,0.001648]
[1729790960976,0.00040051,67598.0,67597.0,0.00627389]
[1729790962114,0.15033351,67598.0,67597.0,0.00627389]
[1729790962352,0.00240051,67598.0,67597.0,0.00627389]
[1729790963505,0.15033351,67598.0,67597.0,0.00627389]
[1729790964380,0.15033351,67598.0,67597.0,0.001648]
[1729790965765,0.00040051,67598.0,67597.0,0.001648]
[1729790965984,0.00240051,67598.0,67597.0,0.001648]
[1729790966658,0.00040051,67598.0,67597.0,0.001648]
[1729790966880,0.00240051,67598.0,67597.0,0.001648]
[1729790967761,0.00040051,67598.0,67597.0,0.001648]
[1729790968109,0.00040051,67598.0,67597.0,0.149583]
[1729790968385,0.00040051,67598.0,67597.0,0.418483]
[1729790970334,0.00040051,67598.0,67597.0,0.56898681]
[1729790971851,0.00040051,67598.0,67597.0,0.58101298]
[1729790978029,0.00040051,67598.0,67597.0,0.56898681]
[1729790978233,0.00040051,67598.0,67597.0,0.5810127]
[1729790981209,0.00040051,67598.0,67597.0,0.5860127]
[1729790984843,0.00040051,67598.0,67597.0,0.57398681]
[1729790985078,0.00040051,67598.0,67597.0,0.58601257]
[1729790988419,0.00040051,67598.0,67597.0,0.418483]
[1729790988686,0.00040051,67598.0,67597.0,0.00627329]
[1729790988687,0.15033351,67598.0,67597.0,0.00627329]
[1729790988951,0.15033351,67598.0,67597.0,0.00627391]
[1729790989182,0.14833351,67598.0,67597.0,0.001648]
[1729790990492,0.15033351,67598.0,67597.0,0.001648]
[1729790996724,0.33735763,67598.0,67597.0,0.001648]
[1729790997149,0.58958718,67598.0,67597.0,0.001648]
[1729790997364,0.50092521,67598.0,67597.0,0.001648]
[1729790997592,0.58952396,67598.0,67597.0,0.001648]
[1729790998042,0.74002777,67598.0,67597.0,0.001648]
[1729790998276,0.90693283,67598.0,67597.0,0.001648]
[1729790998498,1.01765062,67598.0,67597.0,0.001648]
[1729790999199,0.90693283,67598.0,67597.0,0.001648]
[1729790999428,0.87741438,67598.0,67597.0,0.001648]
[1729790999669,0.76672862,67598.0,67597.0,0.001648]
[1729791000553,0.76472862,67598.0,67597.0,0.001648]
[1729791000775,0.76672862,67598.0,67597.0,0.001648]
[1729791001221,0.87738799,67598.0,67597.0,0.001648]
[1729791002130,0.76672862,67598.0,67597.0,0.001648]
[1729791003243,0.85521973,67598.0,67597.0,0.001648]
[1729791004117,0.96432862,67598.0,67597.0,0.001648]
[1729791004365,1.0269595,67598.0,67597.0,0.001648]
[1729791004590,0.98932862,67598.0,67597.0,0.001648]
[1729791005040,0.91495772,67598.0,67597.0,0.001648]
[1729791005288,1.09947755,67598.0,67597.0,0.001648]
[1729791005510,0.75064077,67598.0,67597.0,0.001648]
[1729791006157,0.66220095,67598.0,67597.0,0.001648]
[1729791006668,0.66020095,67598.0,67597.0,0.001648]
[1729791007101,0.72648168,67598.0,67597.0,0.001648]
[1729791008205,0.73048168,67598.0,67597.0,0.001648]
[1729791008646,0.72848168,67598.0,67597.0,0.001648]
[1729791009155,0.48787683,67598.0,67597.0,0.001648]
[1729791009364,0.27997723,67598.0,67597.0,0.001648]
[1729791010021,0.149933,67598.0,67597.0,0.001648]
[1729791010289,0.149933,67598.0,67597.0,0.078148]
[1729791010512,0.002,67598.0,67597.0,0.078148]
[1729791013687,0.149933,67598.0,67597.0,0.078148]
[1729791015143,0.295861,67600.0,67597.0,0.078148]
[1729791015144,0.002,67599.0,67597.0,0.078148]
[1729791015374,0.000825,67598.0,67597.0,0.078148]
[1729791022887,0.150758,67598.0,67597.0,0.078148]
[1729791023131,0.14793,67600.0,67597.0,0.078148]
[1729791024266,0.147929,67600.0,67597.0,0.078148]
[1729791024511,0.295849,67602.0,67597.0,0.078148]
[1729791024512,0.147928,67601.0,67597.0,0.078148]
[1729791025383,0.295844,67603.0,67597.0,0.078148]
[1729791025599,0.295856,67601.0,67597.0,0.078148]
[1729791026032,0.147929,67600.0,67597.0,0.078148]
[1729791026474,0.000825,67600.0,67597.0,0.078148]
[1729791026946,0.147931,67599.0,67597.0,0.078148]
[1729791027418,0.000825,67600.0,67597.0,0.078148]
[1729791027873,0.000825,67600.0,67599.0,0.45057924]
[1729791028103,0.000825,67600.0,67599.0,0.8796083]
[1729791029198,0.000825,67600.0,67599.0,0.72828418]
[1729791029430,0.000825,67600.0,67599.0,0.57696006]
[1729791029673,0.000825,67600.0,67599.0,0.72828418]
[1729791029896,0.000825,67600.0,67599.0,0.72365893]
[1729791030118,0.000825,67600.0,67599.0,0.72828406]
[1729791030360,0.000825,67600.0,67599.0,0.75789406]
[1729791030580,0.000825,67600.0,67599.0,0.72828406]
[1729791031041,0.000825,67600.0,67599.0,0.7282841]
[1729791034552,0.000825,67600.0,67599.0,0.72365893]
[1729791035014,0.000825,67600.0,67599.0,0.72828409]
[1729791038318,0.000825,67600.0,67599.0,0.72365893]
[1729791038580,0.000825,67600.0,67599.0,0.72828406]
[1729791039473,0.000825,67600.0,67599.0,0.72828406]
[1729791040298,0.000825,67600.0,67599.0,0.72365893]
[1729791040514,0.000825,67600.0,67599.0,0.72865893]
[1729791040952,0.000825,67600.0,67599.0,0.88498305]
[1729791041175,0.000825,67600.0,67599.0,0.73365893]
[1729791041589,0.000825,67600.0,67599.0,0.73828398]
[1729791042017,0.000825,67600.0,67599.0,0.72828398]
[1729791045467,0.000825,67600.0,67599.0,0.57695986]
[1729791046124,0.000825,67600.0,67599.0,0.57696022]
[1729791048284,0.000825,67600.0,67599.0,0.72828434]
[1729791050486,0.000825,67600.0,67599.0,0.27852541]
[1729791050702,0.000825,67600.0,67599.0,0.08062541]
[1729791053112,0.000825,67600.0,67599.0,0.22855641]
[1729791053321,0.000825,67600.0,67599.0,0.08062541]
[1729791053533,0.000825,67600.0,67599.0,0.08062568]
[1729791053993,0.000825,67600.0,67599.0,0.22855668]
[1729791057344,0.000825,67600.0,67599.0,0.08062577]
[1729791057565,0.000825,67600.0,67599.0,0.22855677]
[1729791059131,0.000825,67600.0,67599.0,0.37988089]
[1729791059777,0.000825,67600.0,67599.0,0.08062577]
[1729791059988,0.148753,67600.0,67599.0,0.00462577]
[1729791060478,0.147931,67599.0,67598.0,0.00165]
[1729791063610,0.50303481,67599.0,67598.0,0.00165]
[1729791063829,0.56927993,67599.0,67598.0,0.00165]
[1729791064085,0.77030835,67599.0,67598.0,0.00165]
[1729791064328,0.77230835,67599.0,67598.0,0.00165]
[1729791064774,0.77030835,67599.0,67598.0,0.00165]
[1729791064993,0.77622835,67599.0,67598.0,0.00165]
[1729791065895,0.77822835,67599.0,67598.0,0.00165]
[1729791066118,0.77622835,67599.0,67598.0,0.00165]
[1729791066552,0.92673216,67599.0,67598.0,0.00165]
[1729791068206,1.01515558,67599.0,67598.0,0.00165]
[1729791068642,0.86465177,67599.0,67598.0,0.00165]
[1729791069572,0.87537848,67599.0,67598.0,0.00165]
[1729791069810,0.78695506,67599.0,67598.0,0.00165]
[1729791070028,0.78895506,67599.0,67598.0,0.00165]
[1729791070243,0.78895506,67599.0,67589.0,0.001648]
[1729791070244,0.26295,67590.0,67589.0,0.001648]
[1729791070471,0.75287793,67590.0,67589.0,0.001648]
[1729791070927,0.26295,67590.0,67589.0,0.001648]
[1729791071143,0.24795,67590.0,67589.0,0.001648]
[1729791071361,0.14795,67590.0,67589.0,0.001648]
[1729791072679,0.295888,67593.0,67590.0,0.0805]
[1729791072889,0.1,67597.0,67590.0,0.0805]
[1729791072890,0.147948,67591.0,67590.0,0.0805]
[1729791074932,0.14795,67590.0,67589.0,0.001648]
[1729791076827,0.15295,67590.0,67589.0,0.001648]
[1729791078317,0.30345381,67590.0,67589.0,0.001648]
[1729791078531,0.41345381,67590.0,67589.0,0.001648]
[1729791078953,0.24795,67590.0,67589.0,0.001648]
[1729791080856,0.14795,67590.0,67589.0,0.001648]
[1729791081065,0.14795,67590.0,67589.0,0.078148]
[1729791086125,0.005825,67599.0,67590.0,0.1833]
[1729791086126,0.1,67598.0,67590.0,0.1833]
[1729791086347,0.295875,67596.0,67590.0,0.1833]
[1729791086551,0.147948,67592.0,67590.0,0.1833]
[1729791086991,0.2967,67597.0,67591.0,0.15132412]
[1729791087203,0.147942,67594.0,67591.0,0.15132412]
[1729791087639,0.147939,67596.0,67591.0,0.15132412]
[1729791087872,0.14794,67595.0,67591.0,0.15132412]
[1729791088086,0.147942,67594.0,67591.0,0.15132412]
[1729791088341,0.147945,67593.0,67591.0,0.15132412]
[1729791088584,0.147945,67593.0,67590.0,0.1833]
[1729791089716,0.147942,67595.0,67590.0,0.1833]
[1729791089947,0.000825,67597.0,67590.0,0.1833]
[1729791090594,0.295875,67596.0,67590.0,0.1833]
[1729791090830,0.147948,67591.0,67590.0,0.1833]
[1729791091031,0.14795,67590.0,67589.0,0.078148]
[1729791093068,0.14795,67590.0,67589.0,0.001648]
[1729791093069,0.29927412,67590.0,67589.0,0.001648]
[1729791093275,0.14795,67590.0,67589.0,0.001648]
[1729791093715,0.40427412,67590.0,67589.0,0.001648]
[1729791093948,0.56477793,67590.0,67589.0,0.001648]
[1729791095555,0.55477793,67590.0,67589.0,0.001648]
[1729791095792,0.24795,67590.0,67589.0,0.001648]
[1729791096014,0.40427412,67590.0,67589.0,0.001648]
[1729791096465,0.39927412,67590.0,67589.0,0.001648]
[1729791097818,0.40427412,67590.0,67589.0,0.001648]